fUSD/lending_fUSD_20250614
["ID","MTS","AMOUNT","RATE_DAILY","PERIOD"]
[365758312,1749883837224,-185.742876,0.000177,2]
[365758313,1749883837234,-185.742876,0.000177,2]
[365758314,1749883837243,-185.742876,0.000177,2]
[365758315,1749883837266,-249.800492,0.000177,2]
[365758316,1749883837276,-249.800492,0.000177,2]
[365758317,1749883837287,-249.800492,0.000177,2]
[365758318,1749883837296,-249.800492,0.000177,2]
[365758319,1749883837306,-249.800492,0.000177,2]
[365758320,1749883837315,-249.800492,0.000177,2]
[365758321,1749883837324,-449.402984,0.000177,2]
[365758322,1749883837334,-449.402984,0.000177,2]
[365758323,1749883837343,-449.402984,0.000177,2]
[365758324,1749883837352,-449.402984,0.000177,2]
[365758325,1749883837362,-449.402984,0.000177,2]
[365758326,1749883837371,-449.402984,0.000177,2]
[365758327,1749883837381,-449.402984,0.000177,2]
[365758328,1749883837391,-151.0,0.000177,2]
[365758329,1749883837400,-449.402984,0.000177,2]
[365758330,1749883837409,-151.0,0.000177,2]
[365758331,1749883837419,-151.0,0.000177,2]
[365758332,1749883837428,-151.0,0.000177,2]
[365758333,1749883837438,-151.0,0.000177,2]
[365758334,1749883837447,-151.0,0.000177,2]
[365758335,1749883837456,-151.0,0.000177,2]
[365758336,1749883837466,-151.0,0.000177,2]
[365758337,1749883837475,-151.0,0.000177,2]
[365758338,1749883837484,-150.0,0.000177,2]
[365758339,1749883837493,-150.0,0.000177,2]
[365758340,1749883837503,-150.0,0.000177,2]
[365758341,1749883837513,-250.0,0.000177,2]
[365758342,1749883837522,-261.579058,0.000177,2]
[365758343,1749883837532,-444.294993,0.000177,2]
[365758344,1749883837542,-444.294993,0.000177,2]
[365758345,1749883837551,-444.294993,0.000177,2]
[365758346,1749883837560,-444.294993,0.000177,2]
[365758347,1749883837571,-444.294993,0.000177,2]
[365758348,1749883837581,-444.294993,0.000177,2]
[365758349,1749883837592,-444.294993,0.000177,2]
[365758350,1749883837603,-444.294993,0.000177,2]
[365758351,1749883837613,-308.538495,0.000177,2]
[365758352,1749883837624,-308.538495,0.000177,2]
[365758353,1749883837635,-308.538495,0.000177,2]
[365758354,1749883837644,-308.538495,0.000177,2]
[365758355,1749883837653,-308.538495,0.000177,2]
[365758356,1749883837664,-308.538495,0.000177,2]
[365758357,1749883837673,-209.29614112,0.000177,2]
[365758359,1749883837693,-99.24235388,0.000177,2]
[365758360,1749883837703,-308.538493,0.000177,2]
[365758361,1749883837712,-2359.7221715,0.000177,2]
[365758362,1749883837728,-633.99070279,0.00017634,2]
[365758363,1749883837743,-2650.28171328,0.00017634,2]
[365758364,1749883837758,-804.72758393,0.00017634,2]
[365758365,1749883837768,-2785.69484692,0.000177,2]
[365758366,1749883837780,-517.992,0.000177,2]
[365758367,1749883837791,-1309.55065233,0.000177,2]
[365758368,1749883837805,-1392.6949435,0.000177,2]
[365758369,1749883837816,-278.32009924,0.000177,2]
[365758370,1749883837828,-2729.26802587,0.000177,2]
[365758417,1749883838989,-496.59,0.000177,2]
[365758418,1749883839000,-379.75986534,0.000177,2]
[365758419,1749883839011,-448.13726371,0.000177,2]
[365758420,1749883839022,-32085.90777321,0.000177,2]
[365758421,1749883839034,-452.075,0.000177,2]
[365758422,1749883839045,-771.48068025,0.000177,2]
[365758423,1749883839268,-1103.78704119,0.000177,2]
[365758424,1749883839279,-814.71635181,0.000177,2]
[365758425,1749883839291,-7712.05766468,0.000177,2]
[365758426,1749883839302,-1629.83238255,0.000177,2]
[365758427,1749883839314,-1389.43487658,0.000177,2]
[365758428,1749883839324,-16823.10785426,0.000177,2]
[365758429,1749883839335,-1486.05511616,0.000177,2]
[365758473,1749883840299,-155.0,0.00017634,2]
[365758475,1749883840309,-4502.46357058,0.000177,2]
[365758478,1749883840321,-5237.75882463,0.000177,2]
[365758480,1749883840333,-1943.80484295,0.000177,2]
[365758482,1749883840345,-300.0,0.000177,2]
[365758486,1749883840375,-18934.32905585,0.000177,2]
[365758489,1749883840387,-333.81892786,0.000177,2]
[365758661,1749883843022,-11795.09980225,0.000177,2]
[365758662,1749883843098,-2099.22874411,0.000177,2]
[365758663,1749883843175,-1044.10678779,0.000177,2]
[365758664,1749883843188,-5754.85680949,0.000177,2]
[365758673,1749883846013,-5150.0,0.000177,2]
[365758674,1749883846106,-697.70154701,0.000177,2]
[365758693,1749883933051,671.59,0.00024658,120]
[365758694,1749884020831,213.0,0.00024658,120]
[365758695,1749884073212,671.187,0.00024658,120]
[365758696,1749884171826,200.0,0.00015225,2]
[365758701,1749884531775,200.0,0.00015199,2]
[365758702,1749884549815,500.14024441,0.00024,120]
[365758705,1749884579286,218.065,0.00024,120]
[365758708,1749884582135,443.99,0.00014726,2]
[365758754,1749884891993,200.0,0.00015194,2]
[365758755,1749884935113,1000.0,0.00024657,120]
[365758765,1749884957627,770.0,0.00024657,120]
[365758777,1749885032147,-500.0,0.00016199,2]
[365758778,1749885032156,-500.0,0.00016199,2]
[365758779,1749885032166,-200.0,0.00016213,3]
[365758780,1749885032175,-161.01,0.00016501,2]
[365758781,1749885032184,-2189.13504861,0.00016514,2]
[365758782,1749885032196,-561.86495139,0.00016514,2]
[365758783,1749885032209,-1000.0,0.00016556,2]
[365758784,1749885032219,-500.56,0.00016626,2]
[365758785,1749885032228,-882.93615337,0.0001664,2]
[365758786,1749885032238,-413.91,0.00016679,2]
[365758787,1749885032247,-577.56187402,0.00016679,2]
[365758788,1749885032259,-622.43812598,0.00016679,2]
[365758789,1749885032268,-300.0,0.0001668,2]
[365758790,1749885032278,-300.0,0.0001668,2]
[365758791,1749885032288,-146.49803081,0.00016681,2]
[365758797,1749885032643,-440.84803704,0.00016681,2]
[365758801,1749885032670,-2511.72927958,0.00016681,2]
[365758802,1749885032681,-7124.85323477,0.00016681,2]
[365758804,1749885032692,-12234.43593644,0.00016681,2]
[365758806,1749885032703,-1228.92309174,0.00016681,2]
[365758810,1749885032729,-212.71238962,0.00016681,2]
[365758812,1749885032739,-250.0,0.00016934,2]
[365758814,1749885032749,-443.99,0.0001699,2]
[365758816,1749885032759,-485.45087952,0.00017,2]
[365758818,1749885032771,-2935.37726007,0.00017,2]
[365758820,1749885032783,-4423.33167302,0.00017,2]
[365758822,1749885032792,-207.4,0.0001718,2]
[365758824,1749885032802,-395.26949175,0.0001718,2]
[365758826,1749885032811,-668.65185757,0.0001718,2]
[365758828,1749885032820,-151.0,0.0001718,2]
[365758830,1749885032830,-13745.31062941,0.0001718,2]
[365758832,1749885032841,-24361.99953409,0.0001718,2]
[365758834,1749885032852,-1559.91510981,0.0001718,2]
[365758836,1749885032864,-595.63987481,0.0001718,2]
[365759196,1749885038021,-315.59877887,0.0001718,2]
[365759197,1749885038030,-9486.49029798,0.00017181,2]
[365759198,1749885038040,-344.73,0.000172,2]
[365759199,1749885038049,-157.18092315,0.000172,2]
[365759201,1749885038061,-6.23907685,0.000172,2]
[365759203,1749885038071,-300.0,0.000172,2]
[365759204,1749885038080,-908.68881876,0.000172,2]
[365759205,1749885038097,-255.48118124,0.000172,2]
[365759206,1749885038107,-455.03,0.000172,2]
[365759207,1749885038119,-713.2,0.000172,2]
[365759208,1749885038129,-163.13,0.000172,2]
[365759209,1749885038138,-200.0,0.00017231,4]
[365759210,1749885038147,-897.06,0.00017245,2]
[365759211,1749885038156,-1164.17,0.000173,2]
[365759212,1749885038167,-361.38,0.000173,2]
[365759213,1749885038176,-169.97,0.000173,2]
[365759214,1749885038186,-300.0,0.000173,2]
[365759215,1749885038195,-2328.34,0.000173,2]
[365759216,1749885038209,-303.21,0.000173,2]
[365759217,1749885038219,-443.8670031,0.0001734,2]
[365759218,1749885038230,-1491.0,0.000174,2]
[365759219,1749885038239,-1256.0,0.00017418,2]
[365759220,1749885038249,-155.0,0.00017418,2]
[365759221,1749885038259,-884.0,0.00017418,2]
[365759222,1749885038269,-852.0,0.00017418,2]
[365759223,1749885038278,-505.4205866,0.00017419,2]
[365759224,1749885038289,-150.0,0.00017424,2]
[365759225,1749885038298,-150.0,0.00017424,2]
[365759226,1749885038307,-150.0,0.00017424,2]
[365759227,1749885038317,-150.0,0.00017427,2]
[365759228,1749885038326,-150.0,0.00017431,2]
[365759229,1749885038336,-150.0,0.00017433,2]
[365759230,1749885038345,-813.21047312,0.00017442,2]
[365759231,1749885038354,-1000.0,0.00017442,2]
[365759232,1749885038363,-150.0,0.00017443,2]
[365759233,1749885038373,-150.0,0.00017444,2]
[365759234,1749885038383,-150.0,0.00017447,2]
[365759235,1749885038392,-150.0,0.0001745,2]
[365759236,1749885038401,-150.0,0.00017458,2]
[365759237,1749885038411,-150.0,0.00017462,2]
[365759238,1749885038420,-150.0,0.0001747,2]
[365759239,1749885038430,-150.0,0.00017471,2]
[365759240,1749885038439,-150.0,0.00017478,2]
[365759241,1749885038448,-150.0,0.0001748,2]
[365759243,1749885038458,-150.0,0.00017482,2]
[365759245,1749885038467,-150.0,0.00017484,2]
[365759246,1749885038478,-150.0,0.00017486,2]
[365759248,1749885038488,-150.0,0.00017487,2]
[365759250,1749885038498,-202.58658251,0.00017488,2]
[365759252,1749885038508,-532.43376154,0.00017488,2]
[365759254,1749885038519,-150.0,0.00017489,2]
[365759256,1749885038533,-150.0,0.00017492,2]
[365759258,1749885038542,-150.0,0.00017494,2]
[365759260,1749885038552,-150.0,0.00017506,2]
[365759261,1749885038562,-150.0,0.00017508,2]
[365759263,1749885038571,-150.0,0.00017509,2]
[365759266,1749885038580,-151.09130387,0.00017509,2]
[365759268,1749885038590,-150.0,0.00017511,2]
[365759271,1749885038600,-150.0,0.00017513,2]
[365759273,1749885038609,-150.0,0.00017513,2]
[365759275,1749885038618,-150.0,0.00017513,2]
[365759277,1749885038627,-1164.61911616,0.00017517,2]
[365759279,1749885038639,-180.29678808,0.00017517,2]
[365759281,1749885038649,-150.0,0.00017531,2]
[365759283,1749885038659,-150.0,0.00017534,2]
[365759285,1749885038668,-4062.07532414,0.00017536,2]
[365759290,1749885038708,-658.47843359,0.00017536,2]
[365759294,1749885038741,-5945.51637235,0.00017536,2]
[365759296,1749885038751,-150.0,0.00017539,2]
[365759298,1749885038760,-150.0,0.00017541,2]
[365759300,1749885038770,-150.0,0.00017542,2]
[365759302,1749885038779,-150.0,0.00017543,2]
[365759304,1749885038788,-150.0,0.00017544,2]
[365759306,1749885038798,-150.0,0.00017544,2]
[365759308,1749885038808,-150.0,0.00017544,2]
[365759311,1749885038817,-150.0,0.00017547,2]
[365759313,1749885038827,-150.0,0.00017547,2]
[365759315,1749885038836,-150.0,0.00017548,2]
[365759317,1749885038845,-150.0,0.00017549,2]
[365759319,1749885038855,-150.0,0.00017556,2]
[365759321,1749885038864,-150.0,0.00017558,2]
[365759323,1749885038873,-500.0,0.00017558,2]
[365759325,1749885038883,-200.0,0.00017558,2]
[365759327,1749885038893,-150.0,0.00017559,2]
[365759329,1749885038904,-150.0,0.0001756,2]
[365759331,1749885038914,-150.0,0.0001756,2]
[365759333,1749885038926,-150.0,0.00017561,2]
[365759335,1749885038936,-150.0,0.00017567,2]
[365759337,1749885038945,-150.0,0.00017572,2]
[365759339,1749885038954,-150.0,0.00017573,2]
[365759341,1749885038963,-1000.0,0.00017573,2]
[365759343,1749885038973,-150.0,0.00017575,2]
[365759345,1749885038982,-150.0,0.00017576,2]
[365759347,1749885038992,-1000.0,0.00017576,2]
[365759349,1749885039001,-150.0,0.00017577,2]
[365759351,1749885039010,-150.0,0.00017585,2]
[365759353,1749885039020,-150.0,0.00017587,2]
[365759355,1749885039029,-150.0,0.00017588,2]
[365759357,1749885039039,-150.0,0.00017589,2]
[365759359,1749885039048,-3687.82080006,0.0001759,2]
[365759361,1749885039060,-4156.33901229,0.0001759,2]
[365759363,1749885039069,-150.0,0.00017591,2]
[365759365,1749885039079,-150.0,0.00017591,2]
[365759367,1749885039088,-422.30143481,0.00017592,2]
[365759490,1749885040322,-150.0,0.00017519,2]
[365759492,1749885040332,-577.69856519,0.00017592,2]
[365759494,1749885040343,-150.0,0.00017593,2]
[365759496,1749885040354,-150.0,0.00017595,2]
[365759499,1749885040364,-10.30143466,0.00017597,2]
[365759501,1749885040377,-410.84697194,0.00017597,2]
[365759503,1749885040394,-44.3868934,0.00017597,2]
[365759505,1749885040403,-5092.52895324,0.00017597,2]
[365759507,1749885040415,-250.07200281,0.00017597,2]
[365759509,1749885040424,-167.15353815,0.00017597,2]
[365759512,1749885040435,-150.0,0.00017599,2]
[365759514,1749885040444,-150.0,0.00017599,2]
[365759515,1749885040454,-973.00766829,0.000176,2]
[365759517,1749885040463,-244.39960079,0.000176,2]
[365759519,1749885040473,-150.0,0.00017606,2]
[365759521,1749885040484,-150.0,0.00017612,2]
[365759523,1749885040493,-150.0,0.00017612,2]
[365759525,1749885040504,-150.0,0.00017615,2]
[365759527,1749885040513,-150.0,0.00017618,2]
[365759529,1749885040523,-150.0,0.0001762,2]
[365759531,1749885040532,-150.0,0.00017624,2]
[365759533,1749885040541,-150.0,0.00017626,2]
[365759535,1749885040551,-1000.0,0.00017629,2]
[365759537,1749885040561,-151.0,0.00017633,2]
[365759539,1749885040570,-151.0,0.00017633,2]
[365759541,1749885040579,-151.0,0.00017633,2]
[365759543,1749885040589,-151.0,0.00017633,2]
[365759545,1749885040600,-150.0,0.00017634,2]
[365759547,1749885040609,-185.995,0.00017634,2]
[365759549,1749885040619,-250.0,0.00017634,2]
[365759551,1749885040628,-150.231,0.00017634,2]
[365759553,1749885040639,-150.0,0.00017634,2]
[365759555,1749885040647,-170.0,0.00017634,2]
[365759557,1749885040657,-150.101,0.00017634,2]
[365759559,1749885040666,-150.0,0.00017634,2]
[365759561,1749885040676,-286.896,0.00017634,2]
[365759563,1749885040685,-150.121,0.00017634,2]
[365759565,1749885040694,-3332.0,0.00017634,2]
[365759567,1749885040703,-945.0,0.00017634,2]
[365759569,1749885040713,-637.0,0.00017634,2]
[365759571,1749885040723,-802.0,0.00017634,2]
[365759574,1749885040733,-558.0,0.00017634,2]
[365759576,1749885040743,-752.422,0.00017634,2]
[365759578,1749885040752,-927.0,0.00017634,2]
[365759580,1749885040762,-150.0,0.00017636,2]
[365759582,1749885040771,-150.0,0.00017638,2]
[365759584,1749885040781,-150.0,0.00017639,2]
[365759586,1749885040791,-150.0,0.00017642,2]
[365759588,1749885040800,-150.0,0.00017646,2]
[365759590,1749885040810,-150.0,0.00017646,2]
[365759592,1749885040820,-150.0,0.00017646,2]
[365759594,1749885040830,-150.0,0.00017647,2]
[365759596,1749885040840,-150.0,0.00017649,2]
[365759598,1749885040850,-150.0,0.00017651,2]
[365759600,1749885040860,-150.0,0.00017653,2]
[365759602,1749885040869,-150.0,0.00017654,2]
[365759604,1749885040878,-150.0,0.00017655,2]
[365759606,1749885040888,-150.0,0.00017657,2]
[365759608,1749885040897,-924.806,0.0001766,2]
[365759609,1749885040907,-150.0,0.0001766,2]
[365759611,1749885040916,-150.0,0.00017662,2]
[365759613,1749885040926,-150.0,0.00017667,2]
[365759614,1749885040935,-150.0,0.00017667,2]
[365759616,1749885040944,-500.0,0.00017673,2]
[365759618,1749885040954,-500.0,0.00017673,2]
[365759619,1749885040963,-500.0,0.00017673,2]
[365759621,1749885040972,-500.0,0.00017673,2]
[365759623,1749885040982,-150.0,0.00017685,2]
[365759624,1749885040991,-150.0,0.00017685,2]
[365759626,1749885041000,-150.0,0.00017686,2]
[365759628,1749885041009,-150.0,0.00017688,2]
[365759630,1749885041018,-150.0,0.00017689,2]
[365759631,1749885041027,-765.61142738,0.00017689,2]
[365759633,1749885041037,-150.0,0.0001769,2]
[365759635,1749885041046,-150.0,0.00017691,2]
[365759636,1749885041055,-150.0,0.00017691,2]
[365759638,1749885041064,-487.71772686,0.00017692,2]
[365759640,1749885041074,-150.0,0.00017692,2]
[365759642,1749885041083,-300.0,0.00017696,2]
[365759643,1749885041093,-1001.3546,0.00017696,2]
[365759645,1749885041102,-668.83650048,0.00017696,2]
[365759647,1749885041111,-300.0,0.00017696,2]
[365759648,1749885041120,-383.899784,0.00017697,2]
[365759650,1749885041129,-383.899784,0.00017697,2]
[365759652,1749885041139,-383.899784,0.00017697,2]
[365759654,1749885041148,-383.899784,0.00017697,2]
[365759656,1749885041158,-383.899784,0.00017697,2]
[365759657,1749885041167,-383.899784,0.00017697,2]
[365759659,1749885041176,-383.899784,0.00017697,2]
[365759661,1749885041185,-383.899784,0.00017697,2]
[365759663,1749885041195,-288.918182,0.00017697,2]
[365759664,1749885041205,-288.918182,0.00017697,2]
[365759666,1749885041219,-288.918182,0.00017697,2]
[365759668,1749885041228,-288.918182,0.00017697,2]
[365759669,1749885041238,-151.0,0.00017697,2]
[365759671,1749885041247,-151.0,0.00017697,2]
[365759673,1749885041257,-151.0,0.00017697,2]
[365759675,1749885041267,-151.0,0.00017697,2]
[365759677,1749885041275,-151.0,0.00017697,2]
[365759678,1749885041285,-151.358546,0.00017697,2]
[365759680,1749885041294,-151.0,0.00017697,2]
[365759682,1749885041304,-151.0,0.00017697,2]
[365759683,1749885041313,-151.0,0.00017697,2]
[365759685,1749885041322,-151.0,0.00017697,2]
[365759687,1749885041332,-151.0,0.00017697,2]
[365759689,1749885041341,-151.0,0.00017697,2]
[365759691,1749885041351,-151.0,0.00017697,2]
[365759692,1749885041360,-151.0,0.00017697,2]
[365759694,1749885041369,-199.827478,0.00017697,2]
[365759696,1749885041379,-151.0,0.00017697,2]
[365759698,1749885041388,-151.0,0.00017697,2]
[365759700,1749885041397,-151.0,0.00017697,2]
[365759701,1749885041407,-151.0,0.00017697,2]
[365759703,1749885041416,-151.0,0.00017697,2]
[365759705,1749885041425,-196.644216,0.00017697,2]
[365759707,1749885041435,-151.0,0.00017697,2]
[365759709,1749885041444,-151.0,0.00017697,2]
[365759711,1749885041454,-19695.97146028,0.00017697,2]
[365759713,1749885041467,-4124.00919457,0.00017697,2]
[365759715,1749885041479,-12394.60171703,0.00017697,2]
[365759717,1749885041490,-522.91188455,0.00017697,2]
[365759722,1749885041545,-317.28181432,0.00017697,2]
[365759736,1749885041687,200.0,0.00015194,2]
[365760220,1749885046198,-166.52,0.00016577,2]
[365760222,1749885046207,-455.03,0.000172,2]
[365760224,1749885046220,-150.0,0.00017566,2]
[365760226,1749885046229,-280.25,0.00017697,2]
[365760242,1749885046363,-553.01091817,0.00017697,2]
[365760587,1749885062355,154.12,0.00013699,2]
[365760588,1749885071649,201.0,0.00015194,2]
[365760595,1749885543817,270.41493775,0.0001429,7]
[365760596,1749885564789,1528.6,0.00024658,120]
[365760597,1749885645567,-200.0,0.00016249,2]
[365760598,1749885645594,-150.0,0.00016531,2]
[365760599,1749885645620,-200.0,0.00016621,7]
[365760600,1749885645645,-1852.42,0.00016642,2]
[365760601,1749885645671,-300.0,0.00016745,2]
[365760602,1749885645697,-300.0,0.00016745,2]
[365760603,1749885645723,-1200.0,0.00016745,2]
[365760604,1749885645753,-248.58,0.00016746,2]
[365760605,1749885645781,-250.75,0.00016746,2]
[365760606,1749885645810,-248.15,0.00016746,2]
[365760607,1749885645839,-254.99,0.00016746,2]
[365760608,1749885645867,-250.89,0.00016746,2]
[365760609,1749885645896,-251.39,0.00016746,2]
[365760610,1749885645924,-251.42,0.00016746,2]
[365760611,1749885645954,-252.18,0.00016746,2]
[365760612,1749885645986,-301.31,0.00016746,2]
[365760613,1749885646019,-254.69,0.00016747,2]
[365760614,1749885646053,-246.5,0.00016747,2]
[365760615,1749885646086,-248.5,0.00016747,2]
[365760616,1749885646119,-247.55,0.00016747,2]
[365760617,1749885646151,-248.08,0.00016747,2]
[365760618,1749885646182,-254.48,0.00016747,2]
[365760619,1749885646212,-246.65,0.00016747,2]
[365760620,1749885646243,-254.64,0.00016747,2]
[365760621,1749885646272,-251.59,0.00016747,2]
[365760622,1749885646301,-245.65,0.00016747,2]
[365760623,1749885646331,-254.7,0.00016747,2]
[365760624,1749885646360,-245.79,0.00016747,2]
[365760625,1749885646392,-253.78,0.00016747,2]
[365760626,1749885646421,-248.22,0.00016747,2]
[365760627,1749885646468,-246.82,0.00016747,2]
[365760628,1749885646502,-251.84,0.00016747,2]
[365760629,1749885646534,-246.28,0.00016747,2]
[365760630,1749885646564,-249.6,0.00016747,2]
[365760631,1749885646595,-246.87,0.00016747,2]
[365760632,1749885646625,-600.0,0.00016747,4]
[365760633,1749885646657,-250.0,0.00016747,2]
[365760634,1749885646683,-7511.39,0.00016747,2]
[365760635,1749885646713,-513.45,0.00016759,2]
[365760636,1749885646745,-251.35,0.00016759,2]
[365760637,1749885646775,-252.0,0.00016759,2]
[365760638,1749885646807,-254.32,0.00016759,2]
[365760639,1749885646838,-249.22,0.00016759,2]
[365760640,1749885646867,-245.8,0.00016759,2]
[365760641,1749885646898,-245.09,0.00016759,2]
[365760642,1749885646928,-246.02,0.00016759,2]
[365760643,1749885646964,-7127.05,0.00017,2]
[365760648,1749885777165,466.4,0.00014644,2]
[365760652,1749885805773,-810.38,0.00016528,2]
[365760653,1749885805800,-300.0,0.00016566,2]
[365760654,1749885805826,-4889.62,0.00016567,2]
[365760655,1749885819899,-10000.0,0.00016567,2]
[365760667,1749886049752,154.12,0.00013699,2]
[365760682,1749886128579,433.67092332,0.00018055,30]
[365760683,1749886128710,433.67092332,0.00018137,30]
[365760684,1749886128818,433.67092332,0.00018192,30]
[365760685,1749886128935,433.67092332,0.00018274,30]
[365760686,1749886129551,433.67092332,0.00018356,30]
[365760687,1749886129622,433.67092332,0.00018411,30]
[365760688,1749886129683,433.67092332,0.00018493,30]
[365760689,1749886129752,433.67092332,0.00018575,30]
[365760690,1749886129825,433.67092332,0.0001863,30]
[365760691,1749886129891,433.67092332,0.00018712,30]
[365760692,1749886129944,433.67092332,0.00018767,30]
[365760693,1749886130001,433.67092332,0.00018849,30]
[365760720,1749886232322,-200.0,0.00016316,2]
[365760721,1749886232332,-1110.01,0.00016528,2]
[365760722,1749886232342,-898.59206527,0.00016544,2]
[365760723,1749886232353,-301.40793473,0.00016544,2]
[365760724,1749886232362,-166.09850166,0.00016545,2]
[365760725,1749886232378,-1211.51810382,0.00016545,2]
[365760726,1749886232389,-364.502,0.00016545,2]
[365760727,1749886232409,-972.800534,0.00016545,2]
[365760728,1749886232481,-5164.34086052,0.00016545,2]
[365760729,1749886232492,-300.0,0.00016555,2]
[365760730,1749886232501,-1000.0,0.00016556,2]
[365760731,1749886232511,-675.98,0.00016567,2]
[365760732,1749886232520,-300.0,0.00016737,2]
[365760733,1749886232530,-267.50014301,0.000169,2]
[365760734,1749886232540,-834.00657282,0.000169,2]
[365760735,1749886232550,-466.4,0.00016908,2]
[365760736,1749886232560,-330.55815046,0.00016973,2]
[365760737,1749886232570,-500.0,0.00016973,2]
[365760738,1749886232579,-160.02125167,0.00016973,2]
[365760739,1749886232589,-500.0,0.00016973,2]
[365760740,1749886232599,-500.0,0.00016973,2]
[365760741,1749886232609,-500.0,0.00016973,2]
[365760743,1749886232618,-150.3,0.0001699,2]
[365760744,1749886232628,-150.3,0.0001699,2]
[365760746,1749886232637,-150.3,0.0001699,2]
[365760748,1749886232648,-150.3,0.0001699,2]
[365760749,1749886232661,-150.3,0.0001699,2]
[365760750,1749886232670,-150.3,0.0001699,2]
[365760751,1749886232679,-150.3,0.0001699,2]
[365760752,1749886232691,-288.273107,0.0001699,2]
[365760753,1749886232701,-430.0,0.00016998,2]
[365760754,1749886232711,-171.82225451,0.00016999,2]
[365760755,1749886232721,-257.23661909,0.00016999,2]
[365760756,1749886232733,-376.41078606,0.00016999,2]
[365760757,1749886232743,-500.0,0.00016999,2]
[365760758,1749886232753,-500.0,0.00016999,2]
[365760760,1749886232762,-500.0,0.00016999,2]
[365760761,1749886232772,-500.0,0.00016999,2]
[365760763,1749886232781,-440.56698389,0.00016999,2]
[365760766,1749886232791,-500.0,0.00016999,2]
[365760767,1749886232801,-500.0,0.00016999,2]
[365760770,1749886232811,-500.0,0.00016999,2]
[365760772,1749886232821,-500.0,0.00016999,2]
[365760774,1749886232830,-500.0,0.00016999,2]
[365760776,1749886232840,-500.0,0.00016999,2]
[365760778,1749886232849,-374.33145533,0.00016999,2]
[365760780,1749886232859,-500.0,0.00016999,2]
[365760782,1749886232868,-620.0,0.00016999,2]
[365760783,1749886232878,-500.0,0.00016999,2]
[365760784,1749886232887,-500.0,0.00016999,2]
[365760785,1749886232897,-500.0,0.00016999,2]
[365760786,1749886232907,-500.0,0.00016999,2]
[365760787,1749886232917,-500.0,0.00016999,2]
[365760788,1749886232928,-500.0,0.00016999,2]
[365760789,1749886232938,-487.96589352,0.00016999,2]
[365760790,1749886232947,-174.2410962,0.00016999,2]
[365760791,1749886232957,-500.0,0.00016999,2]
[365760793,1749886232966,-500.0,0.00016999,2]
[365760794,1749886232975,-500.0,0.00016999,2]
[365760795,1749886232984,-500.0,0.00016999,2]
[365760796,1749886232993,-400.0,0.00016999,2]
[365760797,1749886233003,-100883.06912394,0.00017,2]
[365760798,1749886233015,-10504.0,0.00017,2]
[365760800,1749886233026,-7593.0,0.00017,2]
[365760802,1749886233037,-1936.81818939,0.00017,2]
[365760805,1749886233049,-23679.3491667,0.00017,2]
[365760808,1749886233073,-669.13497109,0.00017,2]
[365760967,1749886238798,-884.36224711,0.00017,2]
[365760970,1749886238814,-17700.0,0.00017,2]
[365760972,1749886238826,-809.43248953,0.00017,2]